lending/lending_fUSD_20260110
["ID","MTS","AMOUNT","RATE_DAILY","PERIOD"]
[401214345,1768049445367,-252.68743637,0.00017436,2]
[401214346,1768049445378,-188.04348929,0.00017436,2]
[401214347,1768049445389,-226.31905987,0.00017436,2]
[401214348,1768049445398,-213.87423394,0.00017436,2]
[401214349,1768049445409,-177.21892515,0.00017436,2]
[401214350,1768049445420,-1000.0,0.0001744,2]
[401214351,1768049445699,-150.0,0.00017446,2]
[401214352,1768049445717,-150.0,0.00017447,2]
[401214353,1768049445728,-628.4,0.00017451,2]
[401214354,1768049445738,-260.75602621,0.00017455,2]
[401214355,1768049445748,-252.68743637,0.00017455,2]
[401214356,1768049445758,-188.04348929,0.00017455,2]
[401214357,1768049445768,-226.31905987,0.00017455,2]
[401214359,1768049445777,-213.87423394,0.00017455,2]
[401214361,1768049445787,-177.21892515,0.00017455,2]
[401214364,1768049445796,-150.0,0.00017456,2]
[401214367,1768049445806,-21426.0,0.0001746,2]
[401214369,1768049445816,-150.0,0.00017471,2]
[401214371,1768049445826,-260.75602621,0.00017473,2]
[401214373,1768049445836,-252.68743637,0.00017473,2]
[401214375,1768049445846,-188.04348929,0.00017473,2]
[401214377,1768049445857,-226.31905987,0.00017473,2]
[401214379,1768049445867,-213.87423394,0.00017473,2]
[401214381,1768049445878,-177.21892515,0.00017473,2]
[401214383,1768049445888,-998.76,0.00017483,2]
[401214385,1768049445898,-1000.0,0.00017485,2]
[401214387,1768049445909,-260.75602621,0.00017491,2]
[401214389,1768049445919,-252.68743637,0.00017491,2]
[401214391,1768049445929,-188.04348929,0.00017491,2]
[401214393,1768049445939,-226.31905987,0.00017491,2]
[401214395,1768049445949,-213.87423394,0.00017491,2]
[401214397,1768049445959,-177.21892515,0.00017491,2]
[401214400,1768049445968,-150.0,0.00017498,2]
[401214402,1768049445978,-2000.0,0.000175,2]
[401214404,1768049445988,-150.0,0.00017506,2]
[401214406,1768049445999,-260.75602621,0.00017509,2]
[401214408,1768049446008,-252.68743637,0.00017509,2]
[401214410,1768049446018,-188.04348929,0.00017509,2]
[401214412,1768049446029,-226.31905987,0.00017509,2]
[401214414,1768049446038,-213.87423394,0.00017509,2]
[401214416,1768049446048,-177.21892515,0.00017509,2]
[401214418,1768049446058,-150.0,0.00017515,2]
[401214420,1768049446068,-150.0,0.0001752,2]
[401214422,1768049446077,-260.75602621,0.00017527,2]
[401214424,1768049446087,-252.68743637,0.00017527,2]
[401214426,1768049446097,-188.04348929,0.00017527,2]
[401214428,1768049446107,-226.31905987,0.00017527,2]
[401214430,1768049446116,-213.87423394,0.00017527,2]
[401214432,1768049446125,-177.21892515,0.00017527,2]
[401214434,1768049446135,-628.4,0.0001753,2]
[401214436,1768049446145,-600.0,0.00017534,2]
[401214438,1768049446155,-150.0,0.0001754,2]
[401214439,1768049446165,-150.0,0.00017541,2]
[401214440,1768049446175,-260.75602621,0.00017545,2]
[401214442,1768049446184,-252.68743637,0.00017545,2]
[401214444,1768049446195,-188.04348929,0.00017545,2]
[401214446,1768049446206,-226.31905987,0.00017545,2]
[401214448,1768049446215,-213.87423394,0.00017545,2]
[401214450,1768049446225,-177.21892515,0.00017545,2]
[401214453,1768049446235,-150.0,0.0001755,2]
[401214455,1768049446246,-150.0,0.0001755,2]
[401214457,1768049446255,-150.0,0.0001755,2]
[401214459,1768049446266,-260.75602621,0.00017564,2]
[401214461,1768049446276,-252.68743637,0.00017564,2]
[401214463,1768049446286,-188.04348929,0.00017564,2]
[401214465,1768049446295,-226.31905987,0.00017564,2]
[401214467,1768049446305,-213.87423394,0.00017564,2]
[401214469,1768049446315,-177.21892515,0.00017564,2]
[401214470,1768049446325,-150.0,0.00017576,2]
[401214472,1768049446335,-150.0,0.00017581,2]
[401214474,1768049446345,-260.75602621,0.00017582,2]
[401214475,1768049446355,-252.68743637,0.00017582,2]
[401214477,1768049446364,-188.04348929,0.00017582,2]
[401214479,1768049446374,-226.31905987,0.00017582,2]
[401214481,1768049446384,-213.87423394,0.00017582,2]
[401214483,1768049446394,-177.21892515,0.00017582,2]
[401214485,1768049446404,-150.0,0.00017585,2]
[401214487,1768049446415,-260.75602621,0.000176,2]
[401214490,1768049446427,-252.68743637,0.000176,2]
[401214492,1768049446438,-188.04348929,0.000176,2]
[401214494,1768049446448,-226.31905987,0.000176,2]
[401214496,1768049446458,-213.87423394,0.000176,2]
[401214498,1768049446468,-177.21892515,0.000176,2]
[401214500,1768049446480,-1000.0,0.000176,2]
[401214502,1768049446491,-248.72844434,0.00017603,2]
[401214504,1768049446501,-628.4,0.00017608,2]
[401214506,1768049446511,-150.0,0.00017612,2]
[401214508,1768049446522,-260.75602621,0.00017618,2]
[401214510,1768049446531,-252.68743637,0.00017618,2]
[401214512,1768049446540,-188.04348929,0.00017618,2]
[401214514,1768049446551,-226.31905987,0.00017618,2]
[401214516,1768049446561,-213.87423394,0.00017618,2]
[401214517,1768049446571,-177.21892515,0.00017618,2]
[401214520,1768049446581,-150.0,0.00017623,2]
[401214522,1768049446591,-10000.0,0.00017626,2]
[401214523,1768049446601,-260.75602621,0.00017636,2]
[401214526,1768049446611,-252.68743637,0.00017636,2]
[401214528,1768049446621,-188.04348929,0.00017636,2]
[401214530,1768049446631,-226.31905987,0.00017636,2]
[401214532,1768049446640,-213.87423394,0.00017636,2]
[401214534,1768049446650,-177.21892515,0.00017636,2]
[401214535,1768049446660,-1000.0,0.00017638,2]
[401214537,1768049446669,-1343.26,0.00017638,2]
[401214539,1768049446679,-150.0,0.0001764,2]
[401214542,1768049446689,-150.0,0.0001764,2]
[401214543,1768049446698,-21426.0,0.0001764,2]
[401214545,1768049446708,-1000.0,0.00017641,2]
[401214548,1768049446718,-542.84141296,0.00017645,2]
[401214550,1768049446728,-150.0,0.00017647,2]
[401214551,1768049446738,-300.0,0.00017648,2]
[401214552,1768049446748,-172.27,0.00017651,2]
[401214553,1768049446758,-150.0,0.00017654,2]
[401214554,1768049446768,-260.75602621,0.00017655,2]
[401214556,1768049446778,-252.68743637,0.00017655,2]
[401214558,1768049446789,-188.04348929,0.00017655,2]
[401214560,1768049446800,-226.31905987,0.00017655,2]
[401214563,1768049446810,-213.87423394,0.00017655,2]
[401214565,1768049446820,-177.21892515,0.00017655,2]
[401214567,1768049446829,-150.0,0.00017665,2]
[401214569,1768049446840,-260.75602621,0.00017673,2]
[401214571,1768049446850,-252.68743637,0.00017673,2]
[401214573,1768049446859,-188.04348929,0.00017673,2]
[401214575,1768049446869,-226.31905987,0.00017673,2]
[401214577,1768049446878,-213.87423394,0.00017673,2]
[401214579,1768049446888,-177.21892515,0.00017673,2]
[401214581,1768049446898,-162.0,0.0001768,2]
[401214583,1768049446908,-150.0,0.00017682,2]
[401214585,1768049446918,-628.4,0.00017687,2]
[401214587,1768049446927,-260.75602621,0.00017691,2]
[401214589,1768049446938,-252.68743637,0.00017691,2]
[401214591,1768049446947,-188.04348929,0.00017691,2]
[401214593,1768049446957,-226.31905987,0.00017691,2]
[401214595,1768049446967,-213.87423394,0.00017691,2]
[401214597,1768049446977,-177.21892515,0.00017691,2]
[401214599,1768049446986,-172.27,0.00017698,2]
[401214601,1768049446996,-150.0,0.00017707,2]
[401214604,1768049447008,-1000.0,0.00017709,2]
[401214606,1768049447017,-260.75602621,0.00017709,2]
[401214608,1768049447027,-252.68743637,0.00017709,2]
[401214610,1768049447036,-188.04348929,0.00017709,2]
[401214612,1768049447046,-226.31905987,0.00017709,2]
[401214614,1768049447056,-213.87423394,0.00017709,2]
[401214616,1768049447066,-177.21892515,0.00017709,2]
[401214618,1768049447075,-150.0,0.00017718,2]
[401214620,1768049447084,-150.0,0.00017723,2]
[401214622,1768049447095,-1000.0,0.00017723,2]
[401214624,1768049447104,-1000.0,0.00017725,2]
[401214626,1768049447114,-260.75602621,0.00017727,2]
[401214628,1768049447125,-252.68743637,0.00017727,2]
[401214630,1768049447134,-188.04348929,0.00017727,2]
[401214632,1768049447144,-226.31905987,0.00017727,2]
[401214634,1768049447153,-213.87423394,0.00017727,2]
[401214636,1768049447164,-177.21892515,0.00017727,2]
[401214638,1768049447174,-7554.21886386,0.0001773,2]
[401214640,1768049447183,-1400.0,0.00017734,7]
[401214642,1768049447193,-1000.0,0.0001774,2]
[401214644,1768049447202,-260.75602621,0.00017745,2]
[401214645,1768049447212,-252.68743637,0.00017745,2]
[401214646,1768049447221,-188.04348929,0.00017745,2]
[401214647,1768049447232,-226.31905987,0.00017745,2]
[401214648,1768049447242,-213.87423394,0.00017745,2]
[401214649,1768049447251,-177.21892515,0.00017745,2]
[401214650,1768049447261,-1000.0,0.00017746,2]
[401214651,1768049447270,-150.0,0.00017749,2]
[401214652,1768049447280,-150.0,0.00017753,2]
[401214653,1768049447289,-150.0,0.0001776,2]
[401214654,1768049447299,-1000.0,0.00017763,2]
[401214655,1768049447309,-260.75602621,0.00017764,2]
[401214656,1768049447320,-252.68743637,0.00017764,2]
[401214657,1768049447329,-188.04348929,0.00017764,2]
[401214658,1768049447339,-226.31905987,0.00017764,2]
[401214659,1768049447350,-213.87423394,0.00017764,2]
[401214660,1768049447360,-177.21892515,0.00017764,2]
[401214661,1768049447370,-628.4,0.00017765,2]
[401214662,1768049447380,-542.84141294,0.00017773,2]
[401214663,1768049447390,-150.0,0.00017775,2]
[401214664,1768049447400,-150.0,0.00017775,2]
[401214665,1768049447411,-1000.0,0.00017779,2]
[401214666,1768049447422,-260.75602621,0.00017782,2]
[401214667,1768049447432,-252.68743637,0.00017782,2]
[401214668,1768049447442,-188.04348929,0.00017782,2]
[401214669,1768049447452,-226.31905987,0.00017782,2]
[401214670,1768049447462,-213.87423394,0.00017782,2]
[401214671,1768049447472,-177.21892515,0.00017782,2]
[401214672,1768049447485,-150.0,0.00017788,2]
[401214673,1768049447495,-150.0,0.00017791,2]
[401214674,1768049447504,-150.0,0.00017792,2]
[401214675,1768049447513,-193.60870489,0.00017799,2]
[401214676,1768049447523,-273.43327475,0.00017799,2]
[401214677,1768049447533,-353.8161,0.00017799,2]
[401214678,1768049447545,-500.0,0.00017799,2]
[401214679,1768049447556,-1000.0,0.000178,2]
[401214680,1768049447566,-260.75602621,0.000178,2]
[401214681,1768049447576,-252.68743637,0.000178,2]
[401214682,1768049447586,-188.04348929,0.000178,2]
[401214683,1768049447595,-226.31905987,0.000178,2]
[401214684,1768049447606,-213.87423394,0.000178,2]
[401214685,1768049447616,-177.21892515,0.000178,2]
[401214686,1768049447627,-1887.20841984,0.00017801,2]
[401214687,1768049447637,-500.0,0.00017808,2]
[401214688,1768049447647,-1000.0,0.00017814,2]
[401214689,1768049447657,-260.75602621,0.00017818,2]
[401214690,1768049447666,-252.68743637,0.00017818,2]
[401214691,1768049447677,-188.04348929,0.00017818,2]
[401214692,1768049447688,-226.31905987,0.00017818,2]
[401214693,1768049447699,-213.87423394,0.00017818,2]
[401214694,1768049447714,-177.21892515,0.00017818,2]
[401214695,1768049447725,-150.0,0.00017819,2]
[401214696,1768049447734,-1886.122,0.0001782,2]
[401214697,1768049447744,-187.602,0.0001782,2]
[401214698,1768049447754,-6102.51909,0.0001782,2]
[401214699,1768049447764,-6102.51909,0.0001782,2]
[401214700,1768049447774,-21426.0,0.0001782,2]
[401214701,1768049447784,-159.35537069,0.0001782,2]
[401214702,1768049447794,-1887.20841984,0.00017821,2]
[401214703,1768049447804,-1000.0,0.00017822,2]
[401214704,1768049447814,-150.0,0.00017824,2]
[401214705,1768049447825,-24666.13896743,0.0001783,2]
[401214706,1768049447835,-6102.51909,0.0001783,2]
[401214707,1768049447845,-150.0,0.00017833,2]
[401214708,1768049447858,-260.75602621,0.00017836,2]
[401214709,1768049447869,-252.68743637,0.00017836,2]
[401214710,1768049447879,-188.04348929,0.00017836,2]
[401214711,1768049447889,-226.31905987,0.00017836,2]
[401214712,1768049447899,-213.87423394,0.00017836,2]
[401214713,1768049447909,-177.21892515,0.00017836,2]
[401214714,1768049447919,-1887.20841984,0.00017841,2]
[401214715,1768049447928,-628.4,0.00017843,2]
[401214716,1768049447938,-734.0,0.00017846,2]
[401214717,1768049447948,-260.75602621,0.00017855,2]
[401214718,1768049447958,-252.68743637,0.00017855,2]
[401214719,1768049447967,-188.04348929,0.00017855,2]
[401214720,1768049447977,-226.31905987,0.00017855,2]
[401214721,1768049447987,-213.87423394,0.00017855,2]
[401214722,1768049447998,-177.21892515,0.00017855,2]
[401214723,1768049448008,-200.0,0.00017855,2]
[401214724,1768049448018,-2000.0,0.00017856,2]
[401214725,1768049448027,-200.0,0.00017856,2]
[401214726,1768049448038,-200.0,0.00017856,2]
[401214727,1768049448048,-1000.0,0.00017858,2]
[401214728,1768049448058,-150.0,0.00017859,2]
[401214729,1768049448151,-6102.51909,0.0001786,2]
[401214730,1768049448161,-1887.20841984,0.0001786,2]
[401214731,1768049448171,-150.0,0.00017862,2]
[401214732,1768049448180,-500.0,0.00017863,2]
[401214733,1768049448190,-216.0,0.00017863,2]
[401214734,1768049448199,-260.75602621,0.00017873,2]
[401214735,1768049448209,-252.68743637,0.00017873,2]
[401214736,1768049448218,-188.04348929,0.00017873,2]
[401214737,1768049448228,-226.31905987,0.00017873,2]
[401214738,1768049448238,-213.87423394,0.00017873,2]
[401214739,1768049448248,-177.21892515,0.00017873,2]
[401214740,1768049448257,-150.0,0.00017874,2]
[401214741,1768049448266,-150.0,0.0001788,2]
[401214742,1768049448275,-6102.5191,0.0001788,2]
[401214743,1768049448284,-1887.20841984,0.0001788,2]
[401214744,1768049448294,-500.0,0.00017881,2]
[401214745,1768049448303,-93809.9923751,0.00017882,2]
[401214746,1768049448312,-4358.1561344,0.00017882,2]
[401214747,1768049448321,-4417.0501362,0.00017882,2]
[401214748,1768049448331,-71286.7945532,0.00017882,2]
[401214749,1768049448341,-153.12141,0.00017882,2]
[401214750,1768049448351,-151.0,0.00017882,2]
[401214751,1768049448361,-151.0,0.00017882,2]
[401214752,1768049448371,-151.0,0.00017882,2]
[401214753,1768049448380,-151.0,0.00017882,2]
[401214754,1768049448390,-151.0,0.00017882,2]
[401214755,1768049448399,-151.0,0.00017882,2]
[401214756,1768049448409,-151.0,0.00017882,2]
[401214757,1768049448419,-151.0,0.00017882,2]
[401214758,1768049448427,-151.0,0.00017882,2]
[401214759,1768049448437,-151.0,0.00017882,2]
[401214760,1768049448447,-232.784309,0.00017882,2]
[401214761,1768049448456,-151.0,0.00017882,2]
[401214762,1768049448465,-151.0,0.00017882,2]
[401214763,1768049448475,-151.0,0.00017882,2]
[401214764,1768049448488,-226.634395,0.00017882,2]
[401214765,1768049448499,-151.0,0.00017882,2]
[401214766,1768049448508,-226.634395,0.00017882,2]
[401214767,1768049448517,-692.341074,0.00017882,2]
[401214768,1768049448529,-151.0,0.00017882,2]
[401214769,1768049448538,-226.634395,0.00017882,2]
[401214770,1768049448547,-692.341074,0.00017882,2]
[401214771,1768049448559,-151.0,0.00017882,2]
[401214772,1768049448568,-1337.994588,0.00017882,2]
[401214773,1768049448577,-226.634395,0.00017882,2]
[401214774,1768049448589,-692.341074,0.00017882,2]
[401214775,1768049448599,-151.0,0.00017882,2]
[401214776,1768049448610,-1337.994588,0.00017882,2]
[401214777,1768049448619,-692.341074,0.00017882,2]
[401214778,1768049448629,-1337.994588,0.00017882,2]
[401214779,1768049448638,-1337.994588,0.00017882,2]
[401214780,1768049448648,-260.75602621,0.00017891,2]
[401214781,1768049448657,-252.68743637,0.00017891,2]
[401214782,1768049448667,-188.04348929,0.00017891,2]
[401214783,1768049448676,-226.31905987,0.00017891,2]
[401214784,1768049448686,-213.87423394,0.00017891,2]
[401214785,1768049448696,-177.21892515,0.00017891,2]
[401214786,1768049448705,-25000.0,0.00017891,3]
[401214787,1768049448715,-150.0,0.00017894,2]
[401214788,1768049448726,-25000.0,0.000179,3]
[401214789,1768049448736,-6228.92016198,0.000179,3]
[401214790,1768049448746,-591.38897096,0.000179,2]
[401214791,1768049448756,-1000.0,0.000179,2]
[401214792,1768049448766,-1115.00608942,0.000179,2]
[401214793,1768049448776,-1115.00608942,0.000179,2]
[401214794,1768049448785,-1115.00608942,0.000179,2]
[401214795,1768049448796,-1115.00608942,0.000179,2]
[401214796,1768049448805,-1115.00608942,0.000179,2]
[401214797,1768049448815,-1115.00608942,0.000179,2]
[401214798,1768049448825,-1115.00608942,0.000179,2]
[401214799,1768049448835,-1115.00608942,0.000179,2]
[401214800,1768049448844,-1115.00608942,0.000179,2]
[401214801,1768049448854,-1115.00608942,0.000179,2]
[401214802,1768049448863,-1115.00608942,0.000179,2]
[401214803,1768049448872,-542.84141294,0.000179,2]
[401214804,1768049448882,-179.38897292,0.000179,3]
[401214805,1768049448891,-1887.20841984,0.000179,2]
[401214806,1768049448901,-1349.09797668,0.000179,2]
[401214807,1768049448911,-8113.0,0.000179,2]
[401214808,1768049448920,-150.0,0.00017901,2]
[401214809,1768049448929,-1000.0,0.00017902,2]
[401214810,1768049448939,-260.75602621,0.00017909,2]
[401214811,1768049448948,-252.68743637,0.00017909,2]
[401214812,1768049448957,-188.04348929,0.00017909,2]
[401214813,1768049448967,-226.31905987,0.00017909,2]
[401214814,1768049448977,-213.87423394,0.00017909,2]
[401214815,1768049448987,-177.21892515,0.00017909,2]
[401214816,1768049448996,-6102.51909,0.0001791,2]
[401214817,1768049449006,-1000.0,0.0001791,2]
[401214818,1768049449016,-1343.26,0.00017912,2]
[401214819,1768049449025,-150.0,0.00017916,2]
[401214820,1768049449035,-500.0,0.00017918,2]
[401214821,1768049449047,-628.4,0.00017922,2]
[401214822,1768049449057,-260.75602621,0.00017927,2]
[401214823,1768049449066,-252.68743637,0.00017927,2]
[401214824,1768049449076,-188.04348929,0.00017927,2]
[401214825,1768049449086,-226.31905987,0.00017927,2]
[401214826,1768049449095,-213.87423394,0.00017927,2]
[401214827,1768049449106,-177.21892515,0.00017927,2]
[401214828,1768049449115,-150.0,0.00017929,2]
[401214829,1768049449124,-1000.0,0.0001793,2]
[401214830,1768049449133,-150.0,0.00017931,2]
[401214831,1768049449142,-194.72792766,0.00017933,2]
[401214832,1768049449152,-151.0,0.00017933,2]
[401214833,1768049449161,-533.88981491,0.00017933,2]
[401214834,1768049449171,-151.0,0.00017933,2]
[401214835,1768049449180,-260.75602621,0.00017945,2]
[401214836,1768049449189,-252.68743637,0.00017945,2]
[401214837,1768049449200,-188.04348929,0.00017945,2]
[401214838,1768049449209,-226.31905987,0.00017945,2]
[401214839,1768049449220,-213.87423394,0.00017945,2]
[401214840,1768049449230,-177.21892515,0.00017945,2]
[401214841,1768049449240,-181.00537575,0.00017946,2]
[401214842,1768049449250,-150.0,0.00017958,2]
[401214843,1768049449260,-260.75602621,0.00017964,2]
[401214844,1768049449269,-252.68743637,0.00017964,2]
[401214845,1768049449278,-188.04348929,0.00017964,2]
[401214846,1768049449287,-226.31905987,0.00017964,2]
[401214847,1768049449297,-213.87423394,0.00017964,2]
[401214848,1768049449306,-177.21892515,0.00017964,2]
[401214849,1768049449316,-222.85,0.00017965,2]
[401214850,1768049449326,-150.0,0.00017965,2]
[401214851,1768049449335,-1000.0,0.00017968,2]
[401214852,1768049449345,-500.0,0.00017972,2]
[401214853,1768049449355,-303.0,0.00017973,2]
[401214854,1768049449364,-500.0,0.00017973,2]
[401214855,1768049449374,-500.0,0.00017973,2]
[401214856,1768049449383,-500.0,0.00017973,2]
[401214857,1768049449393,-150.34167383,0.00017973,2]
[401214858,1768049449403,-610.19552731,0.00017973,2]
[401214859,1768049449413,-500.0,0.00017973,2]
[401214860,1768049449422,-500.0,0.00017973,2]
[401214861,1768049449431,-500.0,0.00017973,2]
[401214862,1768049449441,-500.0,0.00017973,2]
[401214863,1768049449450,-500.0,0.00017973,2]
[401214864,1768049449459,-500.0,0.00017973,2]
[401214865,1768049449469,-641.77796518,0.00017973,2]
[401214866,1768049449478,-300.29995774,0.00017973,2]
[401214867,1768049449490,-260.97339631,0.00017973,2]
[401214868,1768049449501,-500.0,0.00017973,2]
[401214869,1768049449510,-500.0,0.00017973,2]
[401214870,1768049449519,-500.0,0.00017973,2]
[401214871,1768049449530,-500.0,0.00017973,2]
[401214872,1768049449540,-500.0,0.00017973,2]
[401214873,1768049449551,-500.0,0.00017973,2]
[401214874,1768049449560,-500.0,0.00017973,2]
[401214875,1768049449570,-500.0,0.00017973,2]
[401214876,1768049449580,-500.0,0.00017973,2]
[401214877,1768049449590,-500.0,0.00017973,2]
[401214878,1768049449599,-902.15010015,0.00017973,2]
[401214879,1768049449609,-500.0,0.00017973,2]
[401214880,1768049449618,-500.0,0.00017973,2]
[401214881,1768049449627,-191.10319937,0.00017973,2]
[401214882,1768049449636,-500.0,0.00017973,2]
[401214883,1768049449645,-501.2767774,0.00017973,2]
[401214884,1768049449655,-500.0,0.00017973,2]
[401214885,1768049449665,-500.0,0.00017973,2]
[401214886,1768049449674,-500.0,0.00017973,2]
[401214887,1768049449684,-433.9562915,0.00017973,2]
[401214888,1768049449694,-500.0,0.00017973,2]
[401214889,1768049449703,-500.0,0.00017973,2]
[401214890,1768049449712,-500.0,0.00017973,2]
[401214891,1768049449721,-500.0,0.00017973,2]
[401214892,1768049449731,-500.0,0.00017973,2]
[401214893,1768049449740,-500.0,0.00017973,2]
[401214894,1768049449750,-500.0,0.00017973,2]
[401214895,1768049449760,-500.0,0.00017973,2]
[401214896,1768049449770,-588.0072514,0.00017973,2]
[401214897,1768049449779,-500.0,0.00017973,2]
[401214898,1768049449788,-500.0,0.00017973,2]
[401214899,1768049449797,-500.0,0.00017973,2]
[401214900,1768049449807,-500.0,0.00017973,2]
[401214901,1768049449816,-571.47009533,0.00017973,2]
[401214902,1768049449826,-500.85151996,0.00017973,2]
[401214903,1768049449835,-150.1,0.00017973,2]
[401214904,1768049449844,-150.1,0.00017973,2]
[401214905,1768049449854,-150.1,0.00017973,2]
[401214906,1768049449863,-165.16345558,0.00017973,2]
[401214907,1768049449874,-150.0,0.00017973,2]
[401214908,1768049449884,-150.0,0.00017973,2]
[401214909,1768049449894,-1000.0,0.00017975,2]
[401214910,1768049449903,-260.75602621,0.00017982,2]
[401214911,1768049449912,-252.68743637,0.00017982,2]
[401214912,1768049449922,-188.04348929,0.00017982,2]
[401214913,1768049449932,-226.31905987,0.00017982,2]
[401214914,1768049449942,-213.87423394,0.00017982,2]
[401214915,1768049449951,-177.21892515,0.00017982,2]
[401214916,1768049449960,-500.0,0.00017982,2]
[401214917,1768049449970,-639.19956225,0.0001799,2]
[401214918,1768049449980,-639.19956225,0.0001799,2]
[401214919,1768049449991,-500.0,0.00017997,2]
[401214920,1768049450001,-124140.1164718,0.00017998,2]
[401214921,1768049450011,-152.010785,0.00017998,2]
[401214922,1768049450021,-151.0,0.00017998,2]
[401214923,1768049450032,-419.74711,0.00017998,2]
[401214924,1768049450044,-151.0,0.00017998,2]
[401214925,1768049450054,-419.74711,0.00017998,2]
[401214926,1768049450064,-151.0,0.00017998,2]
[401214927,1768049450073,-419.74711,0.00017998,2]
[401214928,1768049450083,-419.74711,0.00017998,2]
[401214929,1768049450092,-497.260449,0.00017998,2]
[401214930,1768049450101,-497.260449,0.00017998,2]
[401214931,1768049450111,-497.260449,0.00017998,2]
[401214932,1768049450120,-497.260449,0.00017998,2]
[401214933,1768049450130,-15254.67744735,0.00017999,2]
[401214934,1768049450745,-76643.23579475,0.00017999,2]
[401214935,1768049450755,-498.83027328,0.00017999,2]
[401214936,1768049450765,-160.88728799,0.00017999,2]
[401214937,1768049450774,-706.91186149,0.00017999,2]
[401214938,1768049450784,-300.0,0.00017999,2]
[401214939,1768049450795,-300.0,0.00017999,2]
[401214940,1768049450804,-666.0,0.00017999,2]
[401214941,1768049450814,-209.491025,0.00017999,2]
[401214942,1768049450824,-151.0,0.00017999,2]
[401214943,1768049450834,-151.0,0.00017999,2]
[401214944,1768049450845,-151.0,0.00017999,2]
[401214945,1768049450855,-151.0,0.00017999,2]
[401214946,1768049450864,-201.99217246,0.00017999,2]
[401214947,1768049450873,-151.0,0.00017999,2]
[401214948,1768049450883,-151.0,0.00017999,2]
[401214949,1768049450894,-244.364914,0.00017999,2]
[401214950,1768049450905,-151.0,0.00017999,2]
[401214951,1768049450915,-151.0,0.00017999,2]
[401214952,1768049450926,-151.0,0.00017999,2]
[401214953,1768049450936,-151.0,0.00017999,2]
[401214954,1768049450947,-151.0,0.00017999,2]
[401214955,1768049450957,-151.0,0.00017999,2]
[401214956,1768049450967,-300.0,0.00017999,2]
[401214957,1768049450976,-666.0,0.00017999,2]
[401214958,1768049450986,-500.0,0.00017999,2]
[401214959,1768049450997,-500.0,0.00017999,2]
[401214960,1768049451006,-359.11221161,0.00017999,2]
[401214961,1768049451016,-260.75602621,0.00018,2]
[401214962,1768049451026,-252.68743637,0.00018,2]
[401214963,1768049451037,-188.04348929,0.00018,2]
[401214964,1768049451048,-196.21798024,0.00018,2]
[401214965,1768049451059,-226.31905987,0.00018,2]
[401214966,1768049451070,-213.87423394,0.00018,2]
[401214967,1768049451080,-177.21892515,0.00018,2]
[401214968,1768049451091,-178.17676299,0.00018,2]
[401214969,1768049451102,-298.52493072,0.00018,2]
[401214970,1768049451112,-216.79771002,0.00018,2]
[401214971,1768049451122,-223.10788253,0.00018,2]
[401214972,1768049451133,-247.12115074,0.00018,2]
[401214973,1768049451144,-231.22039699,0.00018,2]
[401214974,1768049451154,-157.59943203,0.00018,2]
[401214975,1768049451164,-156.68286018,0.00018,2]
[401214976,1768049451174,-872730.32680186,0.00018,2]
[401214977,1768049451184,-150.0,0.00018,2]
[401214978,1768049451194,-150.0,0.00018,2]
[401214979,1768049451205,-3376.03001599,0.00018,2]
[401214980,1768049451217,-150.0,0.00018,2]
[401214981,1768049451227,-2286.12716792,0.00018,2]
[401214982,1768049451239,-2933.89154744,0.00018,2]
[401214983,1768049451249,-150.0,0.00018,2]
[401214984,1768049451259,-5511.15547096,0.00018,2]
[401214985,1768049451269,-1000.0,0.00018,2]
[401214986,1768049451279,-1000.0,0.00018,2]
[401214987,1768049451289,-1000.0,0.00018,2]